fUST/lending_fUST_20250901
["ID","MTS","AMOUNT","RATE_DAILY","PERIOD"]
[382519758,1756656640486,-500.0,0.00017259,2]
[382519760,1756656640496,-197.59145903,0.00017259,2]
[382519762,1756656640506,-489.95,0.0001726,2]
[382519764,1756656640516,-324.0913876,0.0001726,2]
[382519766,1756656640526,-480.0,0.0001726,2]
[382519768,1756656640538,-715.29,0.0001726,2]
[382519769,1756656640548,-480.0,0.0001726,2]
[382519771,1756656640558,-480.0,0.0001726,2]
[382519774,1756656640568,-480.0,0.0001726,2]
[382519776,1756656640578,-480.0,0.0001726,2]
[382519778,1756656640588,-175.10694815,0.0001726,2]
[382519780,1756656640598,-480.0,0.0001726,2]
[382519781,1756656640609,-480.0,0.0001726,2]
[382519783,1756656640619,-480.0,0.0001726,2]
[382519785,1756656640629,-480.0,0.0001726,2]
[382519787,1756656640639,-485.02,0.0001726,2]
[382519790,1756656640650,-480.0,0.0001726,2]
[382519792,1756656640660,-480.0,0.0001726,2]
[382519794,1756656640670,-480.0,0.0001726,2]
[382519796,1756656640679,-480.0,0.0001726,2]
[382519798,1756656640689,-493.4,0.0001726,2]
[382519800,1756656640700,-480.0,0.0001726,2]
[382519801,1756656640710,-572.9,0.0001726,2]
[382519803,1756656640720,-480.0,0.0001726,2]
[382519805,1756656640730,-852.06,0.0001726,2]
[382519807,1756656640741,-480.0,0.0001726,2]
[382519809,1756656640751,-1003.54527382,0.0001726,2]
[382519812,1756656640762,-480.0,0.0001726,2]
[382519814,1756656640772,-480.0,0.0001726,2]
[382519816,1756656640784,-480.0,0.0001726,2]
[382519818,1756656640795,-480.0,0.0001726,2]
[382519820,1756656640806,-480.0,0.0001726,2]
[382519822,1756656640815,-480.0,0.0001726,2]
[382519824,1756656640826,-481.03866286,0.0001726,2]
[382519826,1756656640835,-1162.75,0.0001726,2]
[382519828,1756656640845,-480.0,0.0001726,2]
[382519830,1756656640857,-480.0,0.0001726,2]
[382519832,1756656640868,-500.0,0.0001726,2]
[382519834,1756656640878,-500.0,0.0001726,2]
[382519836,1756656640889,-500.0,0.0001726,2]
[382519838,1756656640899,-500.0,0.0001726,2]
[382519840,1756656640909,-482.59720954,0.0001726,2]
[382519842,1756656640919,-480.0,0.0001726,2]
[382519844,1756656640928,-480.0,0.0001726,2]
[382519846,1756656640939,-480.0,0.0001726,2]
[382519848,1756656640948,-480.0,0.0001726,2]
[382519850,1756656640958,-480.0,0.0001726,2]
[382519852,1756656640968,-480.0,0.0001726,2]
[382519854,1756656640977,-480.0,0.0001726,2]
[382519856,1756656640987,-735.81,0.0001726,2]
[382519858,1756656640996,-480.0,0.0001726,2]
[382519860,1756656641007,-480.0,0.0001726,2]
[382519862,1756656641016,-272.048462,0.0001726,2]
[382519864,1756656641027,-480.77248224,0.0001726,2]
[382519866,1756656641036,-480.0,0.0001726,2]
[382519868,1756656641046,-500.0,0.0001726,2]
[382519870,1756656641056,-480.0,0.0001726,2]
[382519872,1756656641066,-587.93,0.0001726,2]
[382519874,1756656641077,-480.0,0.0001726,2]
[382519876,1756656641087,-480.0,0.0001726,2]
[382519879,1756656641097,-480.0,0.0001726,2]
[382519881,1756656641107,-480.0,0.0001726,2]
[382519883,1756656641117,-480.0,0.0001726,2]
[382519885,1756656641128,-480.0,0.0001726,2]
[382519887,1756656641138,-480.0,0.0001726,2]
[382519889,1756656641147,-480.0,0.0001726,2]
[382519891,1756656641157,-953.54,0.0001726,2]
[382519909,1756656641338,-480.0,0.0001726,2]
[382519912,1756656641348,-480.0,0.0001726,2]
[382519914,1756656641358,-480.0,0.0001726,2]
[382519916,1756656641368,-1041.88,0.0001726,2]
[382519918,1756656641378,-480.0,0.0001726,2]
[382519919,1756656641388,-1836.3,0.0001726,2]
[382519922,1756656641398,-480.0,0.0001726,2]
[382519924,1756656641408,-495.55,0.0001726,2]
[382519925,1756656641418,-533.7,0.0001726,2]
[382519927,1756656641428,-501.8,0.0001726,2]
[382519929,1756656641437,-480.0,0.0001726,2]
[382519931,1756656641447,-480.0,0.0001726,2]
[382519934,1756656641457,-1076.45,0.0001726,2]
[382519935,1756656641466,-535.76,0.0001726,2]
[382519937,1756656641476,-505.86,0.0001726,2]
[382519939,1756656641486,-513.94,0.0001726,2]
[382519941,1756656641496,-480.0,0.0001726,2]
[382519943,1756656641506,-1881.06,0.0001726,2]
[382519945,1756656641515,-1881.06,0.0001726,2]
[382519947,1756656641526,-1881.06,0.0001726,2]
[382519949,1756656641536,-1881.06,0.0001726,2]
[382519952,1756656641548,-1881.06,0.0001726,2]
[382519953,1756656641557,-1881.06,0.0001726,2]
[382519955,1756656641567,-1881.06,0.0001726,2]
[382519957,1756656641577,-1881.06,0.0001726,2]
[382519959,1756656641586,-1881.06,0.0001726,2]
[382519961,1756656641596,-1881.06,0.0001726,2]
[382519963,1756656641605,-485.77,0.0001726,2]
[382519965,1756656641616,-480.0,0.0001726,2]
[382519967,1756656641626,-666.49,0.0001726,2]
[382519969,1756656641635,-777.94,0.0001726,2]
[382519971,1756656641645,-881.04,0.0001726,2]
[382519973,1756656641654,-480.0,0.0001726,2]
[382519975,1756656641663,-480.0,0.0001726,2]
[382519977,1756656641673,-814.08,0.0001726,2]
[382519979,1756656641682,-502.98,0.0001726,2]
[382519981,1756656641692,-480.0,0.0001726,2]
[382519983,1756656641702,-480.0,0.0001726,2]
[382519985,1756656641712,-482.1,0.0001726,2]
[382519987,1756656641722,-480.0,0.0001726,2]
[382519989,1756656641732,-480.0,0.0001726,2]
[382519991,1756656641741,-480.0,0.0001726,2]
[382519993,1756656641751,-480.0,0.0001726,2]
[382519995,1756656641761,-838.12,0.0001726,2]
[382519997,1756656641770,-480.0,0.0001726,2]
[382519999,1756656641779,-1080.46,0.0001726,2]
[382520000,1756656641789,-1256.87,0.0001726,2]
[382520002,1756656641799,-481.08117347,0.0001726,2]
[382520004,1756656641809,-480.81705646,0.0001726,2]
[382520006,1756656641819,-480.0,0.0001726,2]
[382520008,1756656641830,-572.89,0.0001726,2]
[382520010,1756656641841,-480.64942555,0.0001726,2]
[382520012,1756656641851,-480.0,0.0001726,2]
[382520014,1756656641861,-674.47,0.0001726,2]
[382520016,1756656641871,-480.0,0.0001726,2]
[382520018,1756656641881,-1257.69,0.0001726,2]
[382520020,1756656641890,-1563.2,0.0001726,2]
[382520022,1756656641900,-549.68,0.0001726,2]
[382520024,1756656641911,-606.97,0.0001726,2]
[382520026,1756656641922,-480.0,0.0001726,2]
[382520028,1756656641932,-575.78,0.0001726,2]
[382520030,1756656641942,-481.39767338,0.0001726,2]
[382520032,1756656641952,-567.37918417,0.0001726,2]
[382520034,1756656641962,-480.0,0.0001726,2]
[382520036,1756656641971,-839.64,0.0001726,2]
[382520038,1756656641982,-480.0,0.0001726,2]
[382520040,1756656641991,-428.70427262,0.0001726,2]
[382520042,1756656642000,-545.27,0.0001726,2]
[382520044,1756656642010,-480.0,0.0001726,2]
[382520046,1756656642019,-480.0,0.0001726,2]
[382520048,1756656642029,-526.08976141,0.0001726,2]
[382520050,1756656642038,-480.0,0.0001726,2]
[382520052,1756656642047,-505.60382618,0.0001726,2]
[382520054,1756656642057,-480.0,0.0001726,2]
[382520055,1756656642066,-480.0,0.0001726,2]
[382520058,1756656642076,-387.95163791,0.0001726,2]
[382520059,1756656642085,-480.0,0.0001726,2]
[382520061,1756656642095,-480.0,0.0001726,2]
[382520064,1756656642105,-669.78,0.0001726,2]
[382520065,1756656642115,-480.0,0.0001726,2]
[382520067,1756656642124,-652.78,0.0001726,2]
[382520069,1756656642134,-599.00710125,0.0001726,2]
[382520071,1756656642143,-480.0,0.0001726,2]
[382520074,1756656642153,-480.0,0.0001726,2]
[382520075,1756656642163,-303.32377065,0.0001726,2]
[382520077,1756656642172,-1881.06,0.00017261,2]
[382520079,1756656642181,-549.68,0.00017261,2]
[382520081,1756656642190,-549.68,0.00017261,2]
[382520083,1756656642201,-1881.06,0.00017262,2]
[382520085,1756656642211,-1881.06,0.00017262,2]
[382520087,1756656642220,-1881.06,0.00017262,2]
[382520089,1756656642229,-549.68,0.00017262,2]
[382520091,1756656642239,-549.68,0.00017262,2]
[382520093,1756656642248,-549.68,0.00017262,2]
[382520095,1756656642258,-1881.06,0.00017265,2]
[382520097,1756656642268,-1881.06,0.00017265,2]
[382520099,1756656642277,-1881.06,0.00017265,2]
[382520101,1756656642287,-1881.06,0.00017265,2]
[382520103,1756656642297,-1881.06,0.00017265,2]
[382520105,1756656642306,-549.68,0.00017265,2]
[382520107,1756656642316,-549.68,0.00017265,2]
[382520109,1756656642325,-480.0,0.00017266,2]
[382520111,1756656642334,-480.0,0.00017266,2]
[382520113,1756656642343,-480.0,0.00017266,2]
[382520115,1756656642353,-704.56,0.00017266,2]
[382520117,1756656642363,-590.93,0.00017266,2]
[382520119,1756656642373,-480.0,0.00017266,2]
[382520121,1756656642382,-528.92,0.00017266,2]
[382520123,1756656642392,-1881.06,0.00017268,2]
[382520125,1756656642401,-1881.06,0.00017268,2]
[382520127,1756656642410,-1881.06,0.00017268,2]
[382520129,1756656642421,-1881.06,0.00017268,2]
[382520132,1756656642430,-1881.16,0.00017268,2]
[382520134,1756656642440,-549.68,0.00017268,2]
[382520136,1756656642451,-549.68,0.00017273,2]
[382520138,1756656642460,-549.68,0.00017273,2]
[382520140,1756656642471,-151.0,0.000173,2]
[382520142,1756656642480,-151.0,0.000173,2]
[382520144,1756656642490,-151.0,0.000173,2]
[382520146,1756656642500,-151.0,0.000173,2]
[382520148,1756656642509,-151.0,0.000173,2]
[382520150,1756656642519,-151.0,0.000173,2]
[382520153,1756656642529,-151.0,0.000173,2]
[382520156,1756656642542,-485.0,0.00017338,2]
[382520159,1756656642552,-485.0,0.00017343,2]
[382520162,1756656642562,-151.0,0.000174,2]
[382520165,1756656642571,-151.0,0.000174,2]
[382520167,1756656642580,-151.0,0.000174,2]
[382520169,1756656642590,-151.0,0.000174,2]
[382520171,1756656642600,-151.0,0.000174,2]
[382520173,1756656642609,-151.0,0.000174,2]
[382520175,1756656642622,-190.0,0.00017403,2]
[382520177,1756656642631,-157.13582543,0.00017428,2]
[382520179,1756656642640,-14467.32291333,0.00017443,2]
[382520181,1756656642650,-375.0,0.00017458,2]
[382520183,1756656642659,-375.0,0.00017489,2]
[382520185,1756656642669,-151.0,0.000175,2]
[382520187,1756656642679,-151.0,0.000175,2]
[382520189,1756656642688,-151.0,0.000175,2]
[382520191,1756656642700,-151.0,0.000175,2]
[382520193,1756656642711,-151.0,0.000175,2]
[382520195,1756656642722,-151.0,0.000175,2]
[382520197,1756656642732,-1600.95,0.00017524,2]
[382520199,1756656642743,-1353.12,0.00017524,2]
[382520201,1756656642752,-480.0,0.00017524,2]
[382520203,1756656642762,-480.0,0.00017524,2]
[382520205,1756656642771,-480.0,0.00017524,2]
[382520207,1756656642781,-784.64,0.00017524,2]
[382520209,1756656642790,-810.9,0.00017524,2]
[382520211,1756656642800,-657.8,0.00017524,2]
[382520213,1756656642810,-480.0,0.00017524,2]
[382520215,1756656642820,-1521.6,0.00017524,2]
[382520217,1756656642829,-573.31,0.00017524,2]
[382520219,1756656642838,-1038.38,0.00017524,2]
[382520221,1756656642848,-480.0,0.00017524,2]
[382520223,1756656642857,-740.85,0.00017524,2]
[382520225,1756656642866,-818.84,0.00017524,2]
[382520227,1756656642875,-480.0,0.00017524,2]
[382520229,1756656642885,-480.0,0.00017524,2]
[382520231,1756656642895,-480.0,0.00017524,2]
[382520233,1756656642904,-875.77,0.00017524,2]
[382520235,1756656642913,-1252.22,0.00017524,2]
[382520237,1756656642923,-480.0,0.00017524,2]
[382520239,1756656642932,-649.72,0.00017524,2]
[382520241,1756656642941,-480.0,0.00017524,2]
[382520242,1756656642952,-1758.55,0.00017524,2]
[382520244,1756656642961,-1042.93,0.00017524,2]
[382520247,1756656642972,-480.0,0.00017524,2]
[382520249,1756656642981,-492.92,0.00017524,2]
[382520251,1756656642990,-570.79,0.00017524,2]
[382520253,1756656642999,-480.0,0.00017524,2]
[382520254,1756656643009,-480.0,0.00017524,2]
[382520257,1756656643019,-480.0,0.00017524,2]
[382520258,1756656643028,-1297.02,0.00017524,2]
[382520260,1756656643038,-533.07,0.00017524,2]
[382520263,1756656643048,-1663.11,0.00017524,2]
[382520265,1756656643058,-480.0,0.00017524,2]
[382520267,1756656643067,-480.0,0.00017524,2]
[382520268,1756656643076,-480.0,0.00017524,2]
[382520270,1756656643086,-1465.29,0.00017524,2]
[382520272,1756656643095,-1277.51,0.00017524,2]
[382520274,1756656643104,-480.0,0.00017524,2]
[382520276,1756656643114,-480.0,0.00017524,2]
[382520278,1756656643123,-480.0,0.00017524,2]
[382520280,1756656643132,-522.96,0.00017524,2]
[382520282,1756656643141,-749.9,0.00017524,2]
[382520283,1756656643151,-743.97,0.00017524,2]
[382520284,1756656643160,-480.0,0.00017524,2]
[382520285,1756656643169,-673.26,0.00017524,2]
[382520286,1756656643178,-602.51,0.00017524,2]
[382520287,1756656643188,-1230.82,0.00017524,2]
[382520288,1756656643198,-1316.47,0.00017524,2]
[382520289,1756656643206,-1343.09,0.00017524,2]
[382520290,1756656643215,-480.0,0.00017524,2]
[382520291,1756656643225,-480.0,0.00017524,2]
[382520292,1756656643234,-1189.63,0.00017524,2]
[382520293,1756656643243,-480.0,0.00017524,2]
[382520294,1756656643253,-1479.93,0.00017524,2]
[382520295,1756656643263,-1308.26,0.00017524,2]
[382520296,1756656643272,-455.96158309,0.00017524,2]
[382520297,1756656643281,-1655.85,0.00017524,2]
[382520298,1756656643291,-576.43,0.00017524,2]
[382520299,1756656643300,-977.84,0.00017525,2]
[382520300,1756656643309,-529.23,0.00017525,2]
[382520301,1756656643318,-1264.35,0.00017525,2]
[382520302,1756656643328,-480.0,0.00017525,2]
[382520303,1756656643337,-480.0,0.00017525,2]
[382520304,1756656643347,-480.0,0.00017525,2]
[382520305,1756656643356,-522.21,0.00017525,2]
[382520306,1756656643365,-480.0,0.00017525,2]
[382520308,1756656643375,-480.0,0.00017525,2]
[382520309,1756656643384,-480.0,0.00017525,2]
[382520310,1756656643393,-480.0,0.00017525,2]
[382520311,1756656643402,-400.0,0.00017525,2]
[382520312,1756656643412,-480.0,0.00017525,2]
[382520313,1756656643421,-722.69,0.00017525,2]
[382520314,1756656643430,-905.84,0.00017525,2]
[382520316,1756656643439,-480.0,0.00017525,2]
[382520318,1756656643451,-500.0,0.00017525,2]
[382520320,1756656643460,-480.0,0.00017525,2]
[382520322,1756656643468,-637.66,0.00017525,2]
[382520324,1756656643478,-636.76,0.00017525,2]
[382520326,1756656643487,-480.0,0.00017525,2]
[382520328,1756656643497,-480.0,0.00017525,2]
[382520330,1756656643506,-1956.08,0.00017525,2]
[382520332,1756656643516,-480.0,0.00017525,2]
[382520334,1756656643525,-480.0,0.00017525,2]
[382520336,1756656643535,-753.72,0.00017525,2]
[382520338,1756656643548,-480.0,0.00017525,2]
[382520340,1756656643558,-480.0,0.00017525,2]
[382520342,1756656643567,-618.88,0.00017525,2]
[382520344,1756656643578,-480.0,0.00017525,2]
[382520346,1756656643587,-481.72,0.00017525,2]
[382520348,1756656643597,-1006.75,0.00017525,2]
[382520349,1756656643606,-480.0,0.00017525,2]
[382520352,1756656643618,-621.62,0.00017525,2]
[382520354,1756656643627,-480.0,0.00017525,2]
[382520355,1756656643636,-606.75,0.00017525,2]
[382520357,1756656643646,-981.11,0.00017525,2]
[382520359,1756656643656,-1309.07,0.00017525,2]
[382520362,1756656643665,-1393.52,0.00017525,2]
[382520363,1756656643675,-480.0,0.00017525,2]
[382520365,1756656643684,-1064.57,0.00017525,2]
[382520368,1756656643695,-860.83,0.00017525,2]
[382520369,1756656643704,-642.41,0.00017525,2]
[382520371,1756656643714,-673.77,0.00017525,2]
[382520373,1756656643724,-480.0,0.00017525,2]
[382520375,1756656643733,-480.0,0.00017525,2]
[382520377,1756656643743,-199.0,0.00017525,2]
[382520379,1756656643752,-488.61,0.00017525,2]
[382520381,1756656643762,-829.97,0.00017525,2]
[382520383,1756656643771,-480.0,0.00017525,2]
[382520385,1756656643781,-480.0,0.00017525,2]
[382520387,1756656643791,-571.85,0.00017525,2]
[382520389,1756656643800,-635.28,0.00017525,2]
[382520391,1756656643810,-1723.44,0.00017525,2]
[382520393,1756656643820,-480.0,0.00017525,2]
[382520395,1756656643829,-480.0,0.00017525,2]
[382520397,1756656643839,-607.68,0.00017525,2]
[382520399,1756656643848,-1976.23,0.00017525,2]
[382520401,1756656643858,-1348.7,0.00017525,2]
[382520403,1756656643868,-480.0,0.00017525,2]
[382520405,1756656643882,-608.25,0.00017525,2]
[382520407,1756656643892,-3211.61,0.00017525,2]
[382520409,1756656643902,-1465.47,0.00017525,2]
[382520411,1756656643911,-770.68,0.00017525,2]
[382520413,1756656643920,-789.67,0.00017525,2]
[382520415,1756656643930,-715.5,0.00017525,2]
[382520417,1756656643939,-480.0,0.00017525,2]
[382520419,1756656643950,-960.96,0.00017525,2]
[382520421,1756656643959,-480.0,0.00017525,2]
[382520423,1756656643969,-2925.11,0.00017525,2]
[382520425,1756656643979,-480.0,0.00017525,2]
[382520427,1756656643988,-1692.7,0.00017525,2]
[382520429,1756656644004,-886.42,0.00017525,2]
[382520432,1756656644014,-480.0,0.00017525,2]
[382520434,1756656644024,-480.0,0.00017525,2]
[382520436,1756656644035,-480.0,0.00017525,2]
[382520437,1756656644045,-749.37,0.00017525,2]
[382520440,1756656644055,-480.0,0.00017525,2]
[382520442,1756656644064,-480.0,0.00017525,2]
[382520443,1756656644073,-1125.14,0.00017525,2]
[382520446,1756656644083,-480.0,0.00017525,2]
[382520447,1756656644093,-480.0,0.00017525,2]
[382520449,1756656644102,-480.0,0.00017525,2]
[382520451,1756656644112,-912.94,0.00017525,2]
[382520453,1756656644122,-2831.73,0.00017525,2]
[382520455,1756656644131,-1504.0,0.00017525,2]
[382520457,1756656644140,-663.94,0.00017525,2]
[382520460,1756656644151,-712.3,0.00017525,2]
[382520462,1756656644162,-658.35,0.00017525,2]
[382520464,1756656644171,-480.0,0.00017525,2]
[382520465,1756656644181,-480.0,0.00017525,2]
[382520467,1756656644191,-1072.62,0.00017525,2]
[382520469,1756656644200,-1183.83,0.00017525,2]
[382520471,1756656644210,-780.77,0.00017525,2]
[382520473,1756656644220,-1450.02,0.00017525,2]
[382520475,1756656644230,-641.93,0.00017525,2]
[382520477,1756656644239,-617.71,0.00017525,2]
[382520479,1756656644248,-480.0,0.00017525,2]
[382520481,1756656644258,-385.09346059,0.00017525,2]
[382520483,1756656644267,-480.0,0.00017525,2]
[382520485,1756656644277,-935.24,0.00017525,2]
[382520487,1756656644287,-1433.26,0.00017525,2]
[382520489,1756656644296,-1139.7,0.00017525,2]
[382520491,1756656644306,-1210.08,0.00017525,2]
[382520493,1756656644316,-1022.44,0.00017525,2]
[382520495,1756656644325,-480.0,0.00017525,2]
[382520497,1756656644335,-5840.01,0.00017525,2]
[382520499,1756656644345,-679.16,0.00017525,2]
[382520501,1756656644354,-913.23,0.00017525,2]
[382520503,1756656644365,-480.0,0.00017525,2]
[382520505,1756656644374,-742.1,0.00017525,2]
[382520507,1756656644385,-3690.17,0.00017525,2]
[382520509,1756656644394,-1017.17,0.00017525,2]
[382520511,1756656644403,-480.0,0.00017525,2]
[382520513,1756656644413,-1372.03,0.00017525,2]
[382520515,1756656644422,-1624.36,0.00017525,2]
[382520517,1756656644432,-1487.04,0.00017525,2]
[382520519,1756656644441,-885.6,0.00017525,2]
[382520521,1756656644451,-552.92,0.00017525,2]
[382520523,1756656644460,-963.54,0.00017525,2]
[382520525,1756656644470,-480.0,0.00017525,2]
[382520527,1756656644479,-1269.16,0.00017525,2]
[382520529,1756656644488,-527.36,0.00017525,2]
[382520531,1756656644498,-765.45,0.00017525,2]
[382520533,1756656644507,-480.0,0.00017525,2]
[382520535,1756656644517,-1435.76,0.00017525,2]
[382520537,1756656644527,-480.0,0.00017525,2]
[382520554,1756656644674,-1326.03,0.00017525,2]
[382520556,1756656644703,-480.0,0.00017525,2]
[382520558,1756656644713,-480.0,0.00017525,2]
[382520560,1756656644723,-480.0,0.00017525,2]
[382520562,1756656644733,-684.16,0.00017525,2]
[382520564,1756656644742,-480.0,0.00017525,2]
[382520566,1756656644751,-1751.6,0.00017525,2]
[382520568,1756656644760,-480.0,0.00017525,2]
[382520570,1756656644770,-183.82996849,0.00017526,2]
[382520572,1756656644779,-480.0,0.00017526,2]
[382520574,1756656644788,-480.0,0.00017526,2]
[382520576,1756656644798,-480.0,0.00017526,2]
[382520578,1756656644808,-480.0,0.00017526,2]
[382520580,1756656644818,-480.0,0.00017526,2]
[382520582,1756656644827,-480.0,0.00017526,2]
[382520584,1756656644837,-480.0,0.00017526,2]
[382520586,1756656644846,-480.0,0.00017526,2]
[382520588,1756656644856,-543.86,0.00017526,2]
[382520590,1756656644865,-480.0,0.00017526,2]
[382520592,1756656644875,-480.0,0.00017526,2]
[382520594,1756656644884,-480.0,0.00017526,2]
[382520595,1756656644894,-480.0,0.00017526,2]
[382520597,1756656644904,-480.0,0.00017526,2]
[382520599,1756656644913,-593.38,0.00017526,2]
[382520601,1756656644923,-596.17,0.00017526,2]
[382520603,1756656644932,-480.0,0.00017526,2]
[382520606,1756656644942,-480.0,0.00017526,2]
[382520608,1756656644959,-480.0,0.00017526,2]
[382520609,1756656644969,-489.34,0.00017526,2]
[382520611,1756656644979,-296.00705477,0.00017526,2]
[382520613,1756656644988,-602.4,0.00017526,2]
[382520615,1756656644997,-480.0,0.00017526,2]
[382520617,1756656645007,-480.0,0.00017526,2]
[382520619,1756656645017,-480.0,0.00017526,2]
[382520621,1756656645026,-999.46,0.00017526,2]
[382520623,1756656645036,-480.0,0.00017526,2]
[382520625,1756656645046,-1454.61,0.00017526,2]
[382520627,1756656645056,-1464.44,0.00017526,2]
[382520629,1756656645065,-480.0,0.00017526,2]
[382520631,1756656645075,-480.0,0.00017526,2]
[382520633,1756656645084,-700.54,0.00017526,2]
[382520635,1756656645094,-480.0,0.00017526,2]
[382520637,1756656645103,-480.0,0.00017526,2]
[382520639,1756656645112,-480.0,0.00017526,2]
[382520641,1756656645122,-558.4,0.00017526,2]
[382520643,1756656645132,-1211.99,0.00017526,2]
[382520645,1756656645142,-480.0,0.00017526,2]
[382520646,1756656645152,-480.0,0.00017526,2]
[382520648,1756656645162,-480.0,0.00017526,2]
[382520650,1756656645172,-480.0,0.00017526,2]
[382520652,1756656645183,-480.0,0.00017526,2]
[382520654,1756656645192,-480.0,0.00017526,2]
[382520656,1756656645204,-480.0,0.00017526,2]
[382520658,1756656645214,-480.0,0.00017526,2]
[382520660,1756656645223,-480.0,0.00017526,2]
[382520662,1756656645232,-572.4,0.00017526,2]
[382520664,1756656645242,-651.72,0.00017526,2]
[382520666,1756656645252,-480.0,0.00017526,2]
[382520668,1756656645262,-480.0,0.00017526,2]
[382520670,1756656645272,-480.0,0.00017526,2]
[382520672,1756656645282,-1546.97,0.00017526,2]
[382520674,1756656645291,-480.0,0.00017526,2]
[382520676,1756656645301,-883.46,0.00017526,2]
[382520678,1756656645310,-480.0,0.00017526,2]
[382520680,1756656645319,-480.0,0.00017526,2]
[382520682,1756656645329,-480.0,0.00017526,2]
[382520684,1756656645339,-901.81,0.00017526,2]
[382520686,1756656645348,-749.69,0.00017526,2]
[382520688,1756656645359,-480.0,0.00017526,2]
[382520690,1756656645370,-480.0,0.00017526,2]
[382520692,1756656645380,-785.25,0.00017526,2]
[382520694,1756656645389,-1000.0,0.00017526,2]
[382520696,1756656645399,-480.0,0.00017526,2]
[382520698,1756656645409,-480.0,0.00017526,2]
[382520700,1756656645419,-480.0,0.00017526,2]
[382520702,1756656645428,-480.0,0.00017526,2]
[382520704,1756656645438,-480.0,0.00017526,2]
[382520706,1756656645448,-662.91,0.00017526,2]
[382520708,1756656645458,-480.0,0.00017526,2]
[382520710,1756656645469,-480.0,0.00017526,2]
[382520712,1756656645478,-480.0,0.00017526,2]
[382520714,1756656645488,-480.0,0.00017526,2]
[382520716,1756656645498,-480.0,0.00017526,2]
[382520719,1756656645507,-663.52,0.00017526,2]
[382520722,1756656645517,-480.0,0.00017526,2]
[382520724,1756656645527,-597.67,0.00017526,2]
[382520726,1756656645537,-3381.72,0.00017526,2]
[382520728,1756656645548,-198.85582042,0.00017526,2]
[382520730,1756656645558,-480.0,0.00017526,2]
[382520731,1756656645567,-480.0,0.00017526,2]
[382520733,1756656645576,-880.14,0.00017526,2]
[382520735,1756656645587,-480.0,0.00017526,2]
[382520737,1756656645597,-562.11745179,0.00017526,2]
[382520739,1756656645607,-1081.12,0.00017526,2]
[382520742,1756656645619,-1000.01,0.00017526,2]
[382520744,1756656645629,-480.0,0.00017526,2]
[382520746,1756656645639,-480.0,0.00017526,2]
[382520748,1756656645649,-480.0,0.00017526,2]
[382520750,1756656645659,-605.9,0.00017526,2]
[382520751,1756656645668,-668.71,0.00017526,2]
[382520753,1756656645678,-671.68,0.00017526,2]
[382520756,1756656645688,-1669.02,0.00017526,2]
[382520757,1756656645698,-480.0,0.00017526,2]
[382520759,1756656645708,-867.11,0.00017526,2]